bitfinex/quotes_ETHUSD_20240608
["timestamp","ask_amount","ask_price","bid_price","bid_amount"]
[1717888094210,1.4272161,3677.5,3677.0,2.3256]
[1717888096169,1.4272161,3677.4,3677.0,2.3256]
[1717888097196,1.4272161,3677.4,3676.7,2.3256]
[1717888097400,1.4272161,3677.2,3676.7,2.3256]
[1717888097705,2.71944,3677.3,3676.5,0.64]
[1717888097706,1.4272161,3676.9,3676.5,0.64]
[1717888098220,1.4272161,3677.0,3676.5,0.64]
[1717888099020,1.4272161,3677.0,3676.4,2.3256]
[1717888099229,1.4272161,3677.1,3676.4,2.3256]
[1717888099526,3.94717772,3677.3,3676.4,2.3256]
[1717888099527,1.4272161,3677.0,3676.4,2.3256]
[1717888099690,1.4272161,3677.0,3676.4,2.9656]
[1717888100093,1.4272161,3677.0,3676.4,2.3256]
[1717888100292,1.4272161,3677.1,3676.4,2.9656]
[1717888100519,1.4272161,3677.0,3676.4,2.9656]
[1717888101102,1.4272161,3677.1,3676.6,0.64]
[1717888101649,4.1466561,3677.3,3676.6,0.64]
[1717888101935,4.1466561,3677.3,3676.7,2.3256]
[1717888103178,4.1466561,3677.3,3676.8,0.64]
[1717888105074,1.4272161,3677.2,3676.8,0.64]
[1717888105681,2.71944,3677.3,3676.8,0.64]
[1717888108946,4.14541191,3677.3,3676.8,0.64]
[1717888109639,2.71944,3677.3,3676.8,0.64]
[1717888109785,4.14541191,3677.3,3676.8,0.64]
[1717888111429,2.71944,3677.3,3676.8,0.64]
[1717888111828,4.14541191,3677.3,3676.8,0.64]
[1717888112639,2.71944,3677.3,3676.8,0.64]
[1717888112821,4.14541191,3677.3,3676.8,0.64]
[1717888114287,2.71944,3677.3,3676.8,0.64]
[1717888114689,4.14541191,3677.3,3676.8,0.64]
[1717888115114,4.14541191,3677.3,3676.7,2.3256]
[1717888115329,1.42597191,3677.2,3676.7,2.3256]
[1717888116140,4.14541191,3677.3,3676.7,2.3256]
[1717888118758,4.14541191,3677.3,3676.3,2.72005]
[1717888119065,4.14541191,3677.3,3676.6,0.64]
[1717888119207,4.14541191,3677.3,3676.7,2.255]
[1717888121586,0.58770153,3677.5,3676.4,0.64]
[1717888121587,2.71953,3677.1,3676.4,0.64]
[1717888121881,2.71953,3677.1,3676.4,2.895]
[1717888122029,2.71953,3677.1,3676.4,3.1845]
[1717888124093,2.71953,3677.1,3676.6,0.64]
[1717888124572,1.42597191,3677.4,3676.6,0.64]
[1717888124746,1.42597191,3677.3,3676.6,0.64]
[1717888125273,1.42597191,3677.4,3676.6,0.64]
[1717888125772,1.42597191,3677.3,3676.6,0.64]
[1717888126179,1.42597191,3677.4,3676.6,0.64]
[1717888126341,2.01366196,3677.4,3676.6,0.64]
[1717888126741,1.42597191,3677.4,3676.6,0.64]
[1717888127391,2.01365549,3677.4,3676.6,0.64]
[1717888128191,1.42597191,3677.3,3676.6,0.64]
[1717888128519,1.42565928,3677.3,3676.6,0.64]
[1717888128882,0.58769677,3677.4,3676.6,0.64]
[1717888128883,1.42565928,3677.2,3676.6,0.64]
[1717888129622,1.42577422,3677.2,3676.6,0.64]
[1717888135524,1.42577422,3677.1,3676.6,0.64]
[1717888135830,1.42577422,3677.2,3676.6,0.64]
[1717888137135,1.42577422,3677.1,3676.6,0.64]
[1717888137719,1.42577422,3677.1,3676.5,2.255]
[1717888139094,1.42577422,3677.0,3676.5,2.255]
[1717888139324,1.42577422,3677.0,3676.5,2.845461]
[1717888142202,1.42577422,3676.9,3676.5,2.845461]
[1717888144837,1.42577422,3676.9,3676.1,2.3849]
[1717888144838,1.42750408,3676.9,3676.1,2.3849]
[1717888145134,1.42750408,3676.7,3676.1,2.3849]
[1717888145504,1.42750408,3676.6,3676.1,2.3849]
[1717888145714,1.42741613,3676.6,3676.1,2.3849]
[1717888146129,1.42741613,3676.7,3676.1,2.3849]
[1717888146536,1.42720111,3676.7,3676.1,2.3849]
[1717888147041,1.42720111,3676.6,3676.1,2.3849]
[1717888148342,1.42720111,3676.6,3676.1,2.95943]
[1717888149251,1.42720111,3676.7,3676.1,2.3849]
[1717888149560,1.42720111,3676.6,3675.8,2.954]
[1717888150124,4.14710111,3676.6,3675.8,2.954]
[1717888150734,4.14710111,3676.6,3675.8,2.314]
[1717888150930,4.86455122,3676.6,3675.8,2.314]
[1717888151141,1.42720111,3676.5,3675.8,2.314]
[1717888153226,4.14601269,3676.6,3675.8,2.314]
[1717888155044,0.64,3676.5,3675.8,2.314]
[1717888155350,1.35734127,3676.5,3675.8,2.314]
[1717888159616,2.72009,3676.4,3675.5,2.2546]
[1717888160155,2.72009,3676.4,3675.8,0.64]
[1717888160446,2.72009,3676.4,3675.6,0.64]
[1717888160650,2.72009,3676.4,3675.7,2.2546]
[1717888161225,2.72009,3676.4,3675.8,0.64]
[1717888164150,2.72009,3676.4,3675.7,2.2546]
[1717888184348,2.72009,3676.4,3675.7,2.8946]
[1717888185182,4.1452622,3676.4,3675.7,2.8946]
[1717888186779,4.14658168,3676.4,3675.7,2.8946]
[1717888186981,1.42649168,3676.4,3675.8,0.28946]
[1717888187165,2.01435333,3676.5,3675.8,0.28946]
[1717888187497,1.42649168,3676.5,3675.7,2.8946]
[1717888187651,1.42649168,3676.4,3675.7,2.8946]
[1717888190053,1.42649168,3676.4,3675.7,2.2546]
[1717888190285,1.42649168,3676.4,3675.7,2.8946]
[1717888190486,1.42756256,3676.3,3675.7,2.8946]
[1717888192977,1.4278766,3676.3,3675.7,2.8946]
[1717888193284,1.4278766,3676.2,3675.7,2.8946]
[1717888193489,1.4278766,3676.2,3675.7,3.456131]
[1717888193692,1.4278766,3676.3,3675.7,3.456131]
[1717888193896,1.4278766,3676.2,3675.7,3.456131]
[1717888194189,1.4278766,3676.2,3675.7,2.8946]
[1717888195194,1.4278766,3676.2,3675.4,2.72071]
[1717888195515,1.4278766,3676.2,3675.7,0.64]
[1717888196170,1.4278766,3676.3,3675.7,0.64]
[1717888197200,1.4278766,3676.2,3675.7,1.219091]
[1717888198826,1.42837785,3676.2,3675.7,1.219091]
[1717888199601,1.42837785,3676.3,3675.7,1.219091]
[1717888200495,0.5878638,3676.6,3675.7,1.219091]
[1717888200803,1.42838019,3676.2,3675.7,0.64]
[1717888205791,1.42838019,3676.3,3675.7,0.64]
[1717888206176,4.43396623,3676.6,3675.7,0.64]
[1717888206177,1.42838019,3676.2,3675.7,0.64]
[1717888206701,1.42838019,3676.3,3675.7,0.64]
[1717888207077,1.42838019,3676.2,3675.7,0.64]
[1717888207273,1.42838019,3676.2,3675.6,2.4302]
[1717888209679,1.42838019,3676.1,3675.6,2.4302]
[1717888214090,1.42838019,3676.2,3675.6,2.4302]
[1717888215177,1.42838019,3676.1,3675.6,2.4302]
[1717888217712,1.42838019,3676.2,3675.6,2.4302]
[1717888218075,1.42838019,3676.1,3675.6,2.4302]
[1717888219023,1.42838019,3676.2,3675.6,2.4302]
[1717888219390,1.42838019,3676.1,3675.6,2.4302]
[1717888219802,1.42838019,3676.2,3675.6,2.4302]
[1717888220170,1.42838019,3676.1,3675.6,2.4302]
[1717888220620,1.42838019,3676.2,3675.6,2.4302]
[1717888222149,1.42838019,3676.1,3675.6,2.4302]
[1717888222791,1.42838019,3676.2,3675.6,2.4302]
[1717888223694,1.42838019,3676.1,3675.6,2.4302]
[1717888225212,1.42838019,3676.2,3675.6,2.4302]
[1717888225592,1.42838019,3676.1,3675.6,2.4302]
[1717888228802,1.42825621,3676.1,3675.6,2.4302]
[1717888229535,1.42825216,3676.1,3675.6,2.4302]
[1717888230206,3.07246033,3676.4,3675.6,2.4302]
[1717888230207,1.42825216,3676.2,3675.6,2.4302]
[1717888230407,1.42825216,3676.1,3675.6,2.4302]
[1717888231226,1.42825216,3676.2,3675.6,2.4302]
[1717888231742,0.05360017,3676.1,3675.6,2.4302]
[1717888232147,1.48185233,3676.1,3675.6,2.4302]
[1717888232625,0.05360017,3676.1,3675.6,2.4302]
[1717888233148,1.48185233,3676.1,3675.6,2.4302]
[1717888237334,1.48185961,3676.1,3675.6,2.4302]
[1717888237857,1.48185961,3676.1,3675.8,2.4184]
[1717888238043,0.05360017,3676.1,3675.8,2.4184]
[1717888238376,0.05360017,3676.1,3675.9,0.64]
[1717888238519,0.05360017,3676.1,3676.0,2.4184]
[1717888238818,1.42825944,3676.3,3676.0,2.4184]
[1717888239013,0.05321535,3676.1,3676.0,2.4184]
[1717888239213,1.42825944,3676.4,3676.0,2.4184]
[1717888239452,0.05237869,3676.1,3676.0,2.4184]
[1717888239615,1.42825944,3676.4,3676.0,2.4184]
[1717888239815,0.05237869,3676.1,3676.0,2.4184]
[1717888240016,1.42825944,3676.4,3676.0,2.4184]
[1717888240327,1.42825944,3676.3,3676.0,2.4184]
[1717888240651,0.05243022,3676.2,3676.0,2.4184]
[1717888241012,1.42825944,3676.4,3676.0,2.4184]
[1717888241526,0.05248176,3676.3,3676.0,2.4184]
[1717888242720,1.4807412,3676.3,3676.0,2.4184]
[1717888243132,0.05248176,3676.3,3676.0,2.4184]
[1717888247632,1.42825944,3676.4,3676.0,2.4184]
[1717888247830,1.42825944,3676.4,3676.1,2.72027]
[1717888247831,0.05246985,3676.2,3676.1,2.72027]
[1717888248153,1.42825944,3676.8,3676.2,2.3991]
[1717888248453,2.71962,3677.0,3676.2,2.3991]
[1717888248454,1.42825944,3676.9,3676.2,2.3991]
[1717888248638,1.42825944,3676.9,3676.3,2.3991]
[1717888249325,0.05079957,3676.8,3676.3,2.3991]
[1717888249850,1.47905901,3676.8,3676.3,2.3991]
[1717888251118,0.05079957,3676.8,3676.3,2.3991]
[1717888251745,1.47905901,3676.8,3676.3,2.3991]
[1717888252164,0.05079957,3676.8,3676.3,2.3991]
[1717888255127,4.14787944,3677.0,3676.3,2.3991]
[1717888255349,0.05090487,3676.9,3676.3,2.3991]
[1717888258270,1.47916431,3676.9,3676.3,2.3991]
[1717888262156,0.05090487,3676.9,3676.3,2.3991]
[1717888264188,1.47916431,3676.9,3676.3,2.3991]
[1717888265185,0.05090487,3676.9,3676.3,2.3991]
[1717888271605,1.47653892,3676.9,3676.3,2.3991]
[1717888277215,1.47702364,3676.9,3676.3,2.3991]
[1717888278399,2.19068864,3676.9,3676.3,2.3991]
[1717888278606,1.42621061,3676.8,3676.3,2.3991]
[1717888278975,1.47722403,3676.8,3676.3,2.3991]
[1717888283281,1.47722403,3676.8,3676.5,0.64]
[1717888283604,1.47722403,3676.8,3676.7,2.9305]
[1717888283812,0.05101342,3676.8,3676.7,2.9305]
[1717888283977,0.05101342,3676.8,3676.7,2.2905]
[1717888284175,0.05115187,3676.8,3676.7,2.2905]
[1717888285907,1.42621061,3677.1,3676.7,2.2905]
[1717888286115,0.05115187,3676.8,3676.7,2.2905]
[1717888286478,1.42621061,3677.1,3676.7,2.2905]
[1717888286715,0.05115187,3676.8,3676.7,2.2905]
[1717888286879,1.42621061,3677.1,3676.7,2.2905]
[1717888287197,0.05115187,3676.8,3676.7,2.2905]
[1717888287415,1.42621061,3677.1,3676.7,2.2905]
[1717888287617,0.05115187,3676.8,3676.7,2.2905]
[1717888287983,1.42621061,3677.0,3676.7,2.2905]
[1717888288190,0.04962455,3676.8,3676.7,2.2905]
[1717888288398,1.42621061,3677.1,3676.7,2.2905]
[1717888288595,0.04949658,3676.8,3676.7,2.2905]
[1717888288801,1.42621061,3677.1,3676.7,2.2905]
[1717888288973,0.04953446,3676.8,3676.7,2.2905]
[1717888289723,1.42621061,3677.1,3676.7,2.2905]
[1717888289936,0.04953446,3676.8,3676.7,2.2905]
[1717888290220,1.42621061,3677.1,3676.7,2.2905]
[1717888290445,0.04953446,3676.8,3676.7,2.2905]
[1717888290722,1.42621061,3677.1,3676.7,2.2905]
[1717888290925,0.0495458,3676.8,3676.7,2.2905]
[1717888291080,1.42621061,3677.1,3676.7,2.2905]
[1717888291276,0.04962989,3677.0,3676.7,2.2905]
[1717888297739,1.4758405,3677.0,3676.7,2.2905]
[1717888298741,0.04962989,3677.0,3676.7,2.2905]
[1717888299758,1.4758405,3677.0,3676.7,2.2905]
[1717888300984,1.42621061,3676.9,3676.7,2.2905]
[1717888301146,1.47577108,3676.9,3676.7,2.2905]
[1717888303157,0.04956047,3676.9,3676.7,2.2905]
[1717888304000,1.42621061,3677.1,3676.7,2.2905]
[1717888304148,0.04959904,3676.8,3676.7,2.2905]
[1717888304492,0.04959091,3676.8,3676.7,2.2905]
[1717888304704,1.42621061,3677.1,3676.7,2.2905]
[1717888305008,0.04959091,3676.8,3676.7,2.2905]
[1717888305144,1.42621061,3677.0,3676.7,2.2905]
[1717888305345,0.04959091,3676.8,3676.7,2.2905]
[1717888305573,1.42621061,3677.0,3676.7,2.2905]
[1717888306280,0.04964242,3676.9,3676.7,2.2905]
[1717888311262,1.42672796,3677.0,3676.7,2.2905]
[1717888311466,0.04962825,3676.9,3676.7,2.2905]
[1717888313570,1.42674036,3677.1,3676.7,2.2905]
[1717888314082,0.04913749,3677.0,3676.7,2.2905]
[1717888323614,1.47587785,3677.0,3676.7,2.2905]
[1717888324816,1.42674036,3676.9,3676.7,2.2905]
[1717888325146,0.04908704,3676.8,3676.7,2.2905]
[1717888325641,1.42674036,3677.0,3676.7,2.2905]
[1717888326147,0.04913855,3676.9,3676.7,2.2905]
[1717888328236,1.47587891,3676.9,3676.7,2.2905]
[1717888330253,0.04913855,3676.9,3676.7,2.855549]
[1717888330556,0.04913855,3676.9,3676.8,3.0332]
[1717888331264,0.04912088,3676.9,3676.8,3.0332]
[1717888331428,1.42674036,3677.2,3676.8,3.0332]
[1717888331634,1.42674036,3677.2,3677.0,0.64]
[1717888331947,0.04927776,3677.1,3677.0,0.64]
[1717888334827,1.42743664,3677.2,3677.0,0.64]
[1717888335028,0.04935713,3677.1,3677.0,0.64]
[1717888336246,1.47679377,3677.1,3677.0,0.64]
[1717888339065,0.04935713,3677.1,3677.0,0.64]
[1717888364048,0.04796952,3677.1,3677.0,0.64]
[1717888377177,1.47542189,3677.1,3677.0,0.64]
[1717888377700,0.04796952,3677.1,3677.0,0.64]
[1717888377902,1.47542189,3677.1,3677.0,0.64]
[1717888379207,0.04796952,3677.1,3677.0,0.64]
[1717888382192,1.47542189,3677.1,3677.0,0.64]
[1717888382397,0.04796952,3677.1,3677.0,0.64]
[1717888382935,1.47542189,3677.1,3677.0,0.64]
[1717888387256,1.47597037,3677.1,3677.0,0.64]
[1717888387457,0.04796952,3677.1,3677.0,3.619398]
[1717888387956,2.2897,3678.2,3677.2,2.4041]
[1717888387957,1.42800085,3677.9,3677.2,2.4041]
[1717888388261,1.42800085,3678.1,3677.7,0.64]
[1717888389151,1.42800085,3678.2,3677.9,0.64]
[1717888390229,3.0,3678.4,3678.1,0.64]
[1717888390230,1.42800085,3678.3,3678.1,0.64]
[1717888390426,1.42800085,3678.3,3677.9,0.64]
[1717888390657,1.42800085,3678.4,3678.1,0.64]
[1717888390954,1.42800085,3678.4,3677.6,2.7191]
[1717888390955,1.42800085,3678.4,3678.3,0.64]
[1717888391154,3.68280085,3678.7,3678.3,0.64]
[1717888391653,2.2548,3678.7,3678.3,0.64]
[1717888392353,5.2548,3678.7,3678.3,0.64]
[1717888393053,3.0,3678.7,3678.3,0.64]
[1717888393240,4.42455643,3678.8,3678.3,0.64]
[1717888393445,0.63974864,3678.7,3678.3,0.64]
[1717888394864,0.63974864,3678.7,3678.1,0.64]
[1717888396948,2.06245828,3678.7,3678.1,0.64]
[1717888397264,3.63974864,3678.7,3678.1,0.64]
[1717888397456,0.63974864,3678.7,3678.1,0.64]
[1717888399476,0.04009362,3678.6,3678.1,0.64]
[1717888399980,3.0,3678.8,3678.1,0.64]
[1717888400184,0.04040615,3678.7,3678.1,0.64]
[1717888401053,5.2548,3678.9,3678.1,0.64]
[1717888401279,0.04035468,3678.6,3678.1,0.64]
[1717888401572,0.04030322,3678.5,3678.1,1.210066]
[1717888401778,0.04030322,3678.5,3678.1,0.64]
[1717888401977,5.2548,3678.9,3678.1,0.64]
[1717888402161,0.04045761,3678.8,3678.1,0.64]
[1717888407863,0.04045761,3678.8,3678.2,2.2957]
[1717888415170,0.04045761,3678.8,3678.3,0.64]
[1717888417477,0.04045761,3678.8,3678.2,2.2957]
[1717888427212,0.04045761,3678.8,3678.3,0.64]
[1717888428444,0.04045761,3678.8,3678.2,2.2957]
[1717888428587,0.04045761,3678.8,3678.2,2.9357]
[1717888429403,1.46424924,3678.8,3678.2,2.9357]
[1717888429589,4.46424924,3678.8,3678.2,2.9357]
[1717888429791,1.46424924,3678.8,3678.2,2.9357]
[1717888431193,1.42379163,3678.7,3678.2,2.9357]
[1717888431394,0.04041526,3678.6,3678.2,2.9357]
[1717888431798,1.42479663,3678.7,3678.2,2.9357]
[1717888432139,1.46523082,3678.6,3678.2,2.9357]
[1717888433233,1.42479663,3678.5,3678.2,2.9357]
[1717888433438,1.46504682,3678.5,3678.2,2.9357]
[1717888434592,1.42479663,3678.4,3678.2,2.9357]
[1717888434795,0.04011694,3678.3,3678.2,2.9357]
[1717888435021,0.04011694,3678.3,3678.2,3.501156]
[1717888440534,1.42721618,3678.4,3678.2,3.501156]
[1717888440745,0.04015481,3678.3,3678.2,2.9357]
[1717888448850,0.04015481,3678.3,3678.2,2.2957]
[1717888454165,1.46737099,3678.3,3678.2,2.2957]
[1717888454661,0.04015481,3678.3,3678.2,2.2957]
[1717888456178,1.46737099,3678.3,3678.2,2.2957]
[1717888457729,0.04015481,3678.3,3678.2,2.2957]
[1717888458280,0.04015481,3678.3,3678.0,2.71886]
[1717888458452,0.04015481,3678.3,3677.4,2.4608]
[1717888458453,4.10015181,3678.3,3677.7,0.64]
[1717888458785,1.42721618,3677.9,3677.4,2.4608]
[1717888459136,1.46713539,3677.8,3677.4,2.4608]
[1717888459336,0.03991921,3677.8,3677.4,2.4608]
[1717888459796,0.03991921,3677.8,3677.1,7.43]
[1717888460008,1.14172766,3677.6,3677.1,0.64]
[1717888460142,1.14172766,3677.5,3677.1,0.64]
[1717888460643,0.03971323,3677.4,3677.1,0.64]
[1717888461458,1.14172766,3677.6,3677.1,0.64]
[1717888461663,1.14172766,3677.6,3677.0,2.4608]
[1717888461890,0.03976473,3677.5,3677.1,0.64]
[1717888462286,1.18149239,3677.5,3677.1,0.64]
[1717888462490,1.18149239,3677.5,3677.0,2.4608]
[1717888462801,1.14172766,3677.3,3676.5,2.71996]
[1717888462957,1.14172766,3677.3,3676.7,0.64]
[1717888463152,1.14172766,3677.3,3676.5,3.35996]
[1717888463153,1.14172766,3677.1,3676.5,3.35996]
[1717888463374,1.18109958,3677.2,3676.5,3.35996]
[1717888463584,0.03918944,3677.0,3676.7,0.64]
[1717888463899,1.14172766,3677.2,3676.7,0.64]
[1717888463900,0.03913793,3676.9,3676.7,0.64]
[1717888464397,1.14172766,3677.3,3676.7,0.64]
[1717888464801,0.03920732,3677.2,3676.7,0.64]
[1717888465792,3.56902766,3677.4,3676.7,0.64]
[1717888466159,0.03917365,3677.3,3676.7,0.64]
[1717888467275,1.18090131,3677.3,3676.7,0.64]
[1717888467475,0.03917365,3677.3,3676.7,0.64]
[1717888502471,1.18090131,3677.3,3676.7,0.64]
[1717888502878,1.18090131,3677.3,3676.5,2.71996]
[1717888503072,1.14172766,3677.2,3676.5,3.35996]
[1717888503310,1.14172766,3677.0,3676.5,3.35996]
[1717888503514,0.03773296,3676.9,3676.5,3.35996]
[1717888504278,1.17946062,3676.9,3676.5,3.35996]
[1717888505839,1.14172766,3676.8,3676.5,3.35996]
[1717888506133,0.03768676,3676.7,3676.5,3.35996]
[1717888506489,1.14172766,3676.8,3676.5,3.35996]
[1717888506843,0.03621157,3676.7,3676.5,3.942036]
[1717888507233,1.14172766,3676.8,3676.5,3.942036]
[1717888507408,0.03617899,3676.6,3676.5,3.35996]
[1717888507606,1.14172766,3676.7,3676.5,3.35996]
[1717888507818,0.03616005,3676.6,3676.5,3.35996]
[1717888507997,0.03616005,3676.6,3676.1,2.72024]
[1717888508194,1.14172766,3676.5,3676.1,2.72024]
[1717888508399,1.14172766,3676.5,3676.1,3.36024]
[1717888508708,1.14172766,3676.5,3676.0,2.3808]
[1717888508709,0.03590555,3676.4,3676.0,2.3808]
[1717888508911,0.03590555,3676.4,3675.8,3.4238]
[1717888509116,1.17763321,3676.4,3676.0,0.64]
[1717888510126,0.03590555,3676.4,3676.2,0.64]
[1717888511541,0.00790555,3676.4,3676.2,0.64]
[1717888511698,0.03501532,3676.4,3676.2,0.64]
[1717888513808,1.14172766,3676.5,3676.2,0.64]
[1717888514140,1.14172766,3676.5,3676.1,0.64]
[1717888514438,0.03451359,3676.4,3676.1,0.64]
[1717888517013,1.14172766,3676.6,3676.1,0.64]
[1717888517256,0.03448101,3676.3,3676.1,0.64]
[1717888517396,1.14172766,3676.5,3676.1,0.64]
[1717888517600,0.03442949,3676.2,3676.1,0.64]
[1717888517824,1.14172766,3676.5,3676.1,0.64]
[1717888518047,0.03435371,3676.2,3676.1,0.64]
[1717888518215,1.14172766,3676.5,3676.1,0.64]
[1717888518424,0.03431581,3676.2,3676.1,0.64]
[1717888518932,1.14172766,3676.5,3676.1,0.64]
[1717888519152,0.03445676,3676.4,3676.1,0.64]
[1717888519695,1.14172766,3676.6,3676.1,0.64]
[1717888519901,0.03452723,3676.5,3676.1,0.64]
[1717888531254,0.03452723,3676.5,3675.8,2.3808]
[1717888531412,0.03452723,3676.5,3676.1,0.64]
[1717888531859,0.05675615,3676.5,3676.1,0.64]
[1717888535676,0.05675615,3676.5,3675.9,0.510134]
[1717888535818,1.19848381,3676.5,3675.9,0.510134]
[1717888536137,1.19848381,3676.5,3675.9,1.150134]
[1717888540459,1.14172766,3676.4,3675.9,1.150134]
[1717888540872,0.05665595,3676.3,3675.9,1.150134]
[1717888541076,0.05665595,3676.3,3676.0,0.6251474]
[1717888544345,1.19838361,3676.3,3676.0,0.64]
[1717888552098,1.19838361,3676.3,3675.9,0.64]
[1717888552267,1.14172766,3676.2,3675.9,0.64]
[1717888552467,0.05655413,3676.1,3675.9,0.64]
[1717888553419,0.05655413,3676.1,3675.7,2.72054]
[1717888553625,0.05655413,3676.1,3675.9,0.64]
[1717888554235,0.05655413,3676.1,3675.5,2.3373]
[1717888555098,0.05655413,3676.1,3675.7,0.64]
[1717888555099,1.14172766,3676.0,3675.7,0.64]
[1717888555306,0.05619081,3675.9,3675.7,0.64]
[1717888560724,1.14172766,3676.0,3675.7,0.64]
[1717888560910,0.05614983,3675.9,3675.7,0.64]
[1717888563738,0.05598658,3675.8,3675.7,0.64]
[1717888563942,1.14172766,3676.1,3675.7,0.64]
[1717888564144,0.05608843,3676.0,3675.7,0.64]
[1717888567904,0.05608843,3676.0,3675.3,2.72083]
[1717888568128,0.05608843,3676.0,3675.6,0.64]
[1717888568442,1.19781609,3676.0,3675.6,0.64]
[1717888570133,0.05608843,3676.0,3675.6,0.64]
[1717888570341,1.19781609,3676.0,3675.6,0.64]
[1717888571153,0.05608843,3676.0,3675.6,0.64]
[1717888571657,1.19781609,3676.0,3675.3,5.646003]
[1717888571857,1.19781609,3676.0,3675.6,0.64]
[1717888574248,1.19781609,3676.0,3675.8,0.64]
[1717888574434,1.19781609,3676.0,3675.3,2.72083]
[1717888574737,1.19781609,3676.0,3675.7,0.64]
[1717888580385,1.19781609,3676.0,3675.7,2.9858]
[1717888580686,0.05608843,3676.0,3675.7,2.9858]
[1717888582285,1.19781609,3676.0,3675.7,2.9858]
[1717888582492,1.19781609,3676.0,3675.7,0.64]
[1717888583053,1.19781609,3676.0,3675.3,2.72083]
[1717888583310,3.55162766,3675.9,3675.4,0.64]
[1717888583589,1.19714912,3675.8,3675.4,0.64]
[1717888585497,1.14172766,3675.7,3675.4,0.64]
[1717888585794,0.05535704,3675.6,3675.4,0.64]
[1717888586361,1.14172766,3675.7,3675.4,0.64]
[1717888586558,0.05537576,3675.6,3675.4,0.64]
[1717888587767,1.14172766,3675.8,3675.4,0.64]
[1717888587990,1.14172766,3675.7,3675.4,0.64]
[1717888588196,1.19709819,3675.7,3675.4,0.64]
[1717888589197,0.05537053,3675.7,3675.4,0.64]
[1717888589401,1.14172766,3675.7,3675.4,0.64]
[1717888589904,0.05537576,3675.6,3675.4,0.64]
[1717888590560,0.05532483,3675.5,3675.4,0.64]
[1717888590997,0.05524994,3675.5,3675.4,0.64]
[1717888591394,1.14172766,3675.8,3675.4,0.64]
[1717888591704,0.05533309,3675.7,3675.4,0.64]
[1717888591998,1.14172766,3675.8,3675.4,0.64]
[1717888592201,0.05530088,3675.6,3675.4,0.64]
[1717888592364,1.14172766,3675.7,3675.4,0.64]
[1717888592564,0.05524994,3675.5,3675.4,0.64]
[1717888592800,0.05524994,3675.5,3675.4,0.93858]
[1717888593095,0.0552033,3675.5,3675.4,0.93858]
[1717888593273,1.14172766,3675.7,3675.4,0.93858]
[1717888593454,0.0552033,3675.5,3675.4,0.93858]
[1717888593659,1.14172766,3675.7,3675.4,0.93858]
[1717888593858,0.0552033,3675.5,3675.4,0.93858]
[1717888594285,1.14172766,3675.7,3675.4,0.93858]
[1717888594500,0.0552033,3675.5,3675.4,0.93858]
[1717888594792,1.14172766,3675.7,3675.4,0.93858]
[1717888595259,0.05525423,3675.6,3675.4,0.93858]
[1717888596067,1.14172766,3675.8,3675.4,0.93858]
[1717888596273,1.14172766,3675.8,3675.6,0.64]
[1717888607017,1.14172766,3675.8,3675.3,2.2622]
[1717888607215,1.14172766,3675.8,3675.5,0.64]
[1717888607581,1.14172766,3675.7,3675.5,0.64]
[1717888609514,0.05343814,3675.6,3675.5,0.64]
[1717888619728,1.1951658,3675.6,3675.5,0.64]
[1717888621530,1.1951658,3675.6,3675.3,2.9022]
[1717888622029,0.05343814,3675.6,3675.3,2.9022]
[1717888622334,1.1951658,3675.6,3675.3,2.9022]
[1717888624307,1.1951658,3675.6,3675.3,2.2622]
[1717888625200,1.1951658,3675.6,3675.3,2.55242]
[1717888626830,1.14172766,3675.5,3675.3,2.55242]
[1717888627026,1.14172766,3675.5,3675.3,0.29022]
[1717888627330,0.05152715,3675.4,3675.3,0.29022]
[1717888631200,0.05152715,3675.4,3674.9,2.72113]
[1717888631499,0.05152715,3675.4,3675.2,0.64]
[1717888633333,3.62312766,3675.3,3675.2,0.64]
[1717888633558,3.95923606,3675.3,3674.5,8.07]
[1717888633703,1.14258076,3675.1,3674.5,3.19875]
[1717888633902,1.14258076,3675.1,3674.5,0.64]
[1717888634126,1.19250022,3675.0,3674.4,2.2775]
[1717888634313,0.04991946,3675.0,3674.2,2.78]
[1717888634517,0.04991946,3675.0,3674.6,0.64]
[1717888634719,1.19250022,3675.0,3674.6,0.64]
[1717888635442,0.04991946,3675.0,3674.6,0.64]
[1717888637436,0.04991946,3675.0,3674.5,0.64]
[1717888637641,2.4814,3674.9,3674.2,2.78]
[1717888637837,2.4814,3674.9,3674.4,0.64]
[1717888638043,1.19250022,3675.0,3674.4,0.64]
[1717888638044,0.04971471,3674.8,3674.4,0.64]
[1717888638365,1.14258076,3675.0,3674.4,0.64]
[1717888638512,0.04953061,3674.7,3674.4,0.64]
[1717888638705,1.14258076,3675.0,3674.5,0.4197922]
[1717888638917,0.04938601,3674.6,3674.5,0.4197922]
[1717888639136,1.14258076,3675.0,3674.5,0.4197922]
[1717888639305,0.04945809,3674.6,3674.5,0.4197922]
[1717888639502,1.14258076,3675.0,3674.5,0.4197922]
[1717888639709,0.04945809,3674.6,3674.5,0.4197922]
[1717888639914,1.14258076,3675.0,3674.5,0.4197922]
[1717888640143,0.04947682,3674.6,3674.5,0.4197922]
[1717888640564,6.34504076,3675.1,3674.5,0.4197922]
[1717888640729,0.04951427,3674.6,3674.4,0.64]
[1717888640931,6.34504076,3675.1,3674.4,0.64]
[1717888641222,0.04946331,3674.5,3674.4,0.64]
[1717888641563,0.04948204,3674.5,3674.4,0.64]
[1717888641849,1.14258076,3675.0,3674.4,0.64]
[1717888642212,0.04968586,3674.9,3674.4,1.5597142]
[1717888642658,6.34504076,3675.1,3674.4,1.5597142]
[1717888642862,6.34504076,3675.1,3674.4,0.64]
[1717888643051,0.0497368,3675.0,3674.4,0.64]
[1717888644065,0.0497368,3675.0,3674.2,2.78]
[1717888644362,0.0497368,3675.0,3674.4,0.64]
[1717888648747,0.0497368,3675.0,3674.2,2.78]
[1717888648945,0.0497368,3675.0,3674.4,0.64]